bitfinex-derivatives/quotes_BTCF0:USTF0_20251229
["timestamp","ask_amount","ask_price","bid_price","bid_amount"]
[1767025663779,0.00017146,87526.0,87515.0,0.0114377]
[1767025664074,0.00017146,87526.0,87511.0,0.0114382]
[1767025664467,0.00017146,87526.0,87516.0,0.0114376]
[1767025664771,0.05744,87536.0,87518.0,0.0114373]
[1767025664973,0.02571653,87535.0,87518.0,0.0114373]
[1767025665175,0.02571653,87534.0,87518.0,0.0114373]
[1767025665373,0.02571653,87534.0,87511.0,0.09724]
[1767025665374,0.02571653,87533.0,87511.0,0.09724]
[1767025665571,0.0114354,87534.0,87513.0,0.05744]
[1767025665773,0.011436,87529.0,87513.0,0.05744]
[1767025665960,0.00017146,87532.0,87513.0,0.05744]
[1767025666161,0.00017146,87532.0,87515.0,0.0114376]
[1767025666767,0.00017146,87532.0,87513.0,0.05744]
[1767025666963,0.0114357,87531.0,87513.0,0.05744]
[1767025667471,0.0114357,87531.0,87509.0,0.01160996]
[1767025667668,0.0114357,87531.0,87512.0,0.05744]
[1767025669780,0.00017146,87532.0,87512.0,0.05744]
[1767025669981,0.0114357,87531.0,87512.0,0.05744]
[1767025670164,0.00017146,87532.0,87512.0,0.0688781]
[1767025670368,0.00017146,87532.0,87515.0,0.0114377]
[1767025670579,0.00017146,87532.0,87512.0,0.0688781]
[1767025670980,0.0114358,87530.0,87512.0,0.05744]
[1767025671176,0.0972,87531.0,87509.0,0.00017146]
[1767025671377,0.0114366,87524.0,87509.0,0.00017146]
[1767025672283,0.0114371,87521.0,87509.0,0.00017146]
[1767025672681,0.0114371,87520.0,87509.0,0.00017146]
[1767025672982,0.0114374,87518.0,87509.0,0.00017146]
[1767025673371,0.0114384,87511.0,87509.0,6e-08]
[1767025673572,0.0114397,87501.0,87485.0,0.01469684]
[1767025673781,0.0114397,87501.0,87460.0,0.92239165]
[1767025673782,0.0114384,87511.0,87484.0,0.0972]
[1767025673974,0.0114395,87502.0,87485.0,0.0972]
[1767025674179,0.011439,87506.0,87485.0,0.0972]
[1767025674374,0.0114393,87504.0,87485.0,0.0972]
[1767025674579,0.00017146,87503.0,87486.0,0.00017146]
[1767025674881,0.0114407,87493.0,87486.0,0.00017146]
[1767025675082,0.0114414,87488.0,87486.0,6e-08]
[1767025675381,0.0114414,87488.0,87474.0,0.05712]
[1767025675587,0.0972,87499.0,87474.0,0.05712]
[1767025675976,0.06888,87498.0,87474.0,0.0685631]
[1767025676285,0.0114407,87493.0,87474.0,0.05712]
[1767025676476,0.0114403,87496.0,87475.0,0.00017146]
[1767025676677,0.0114403,87496.0,87475.0,0.01161436]
[1767025676980,0.00017146,87503.0,87475.0,0.00017146]
[1767025677285,0.00017146,87503.0,87484.0,0.0114418]
[1767025677784,0.00017146,87503.0,87483.0,0.09724]
[1767025678079,0.00017146,87503.0,87485.0,0.05744]
[1767025678683,0.00017146,87503.0,87485.0,0.0688817]
[1767025680185,0.00017146,87503.0,87485.0,0.05744]
[1767025681686,0.00017146,87503.0,87486.0,0.0114414]
[1767025681983,0.09724,87511.0,87485.0,0.05744]
[1767025681984,0.0114384,87510.0,87485.0,0.05744]
[1767025682582,0.05744,87516.0,87485.0,0.05744]
[1767025682882,0.09724,87519.0,87494.0,0.0114404]
[1767025683084,0.0114376,87517.0,87495.0,0.15468]
[1767025683481,0.09724,87519.0,87495.0,0.15468]
[1767025683682,0.06128445,87541.0,87495.0,0.15468]
[1767025683883,0.00017146,87527.0,87513.0,0.0114379]
[1767025684087,0.00017146,87527.0,87512.0,0.011438]
[1767025684389,0.00017146,87527.0,87509.0,0.15485146]
[1767025684585,0.09724,87533.0,87515.0,0.0114377]
[1767025684887,0.05744,87540.0,87509.0,0.15485146]
[1767025684888,0.0688746,87540.0,87517.0,0.0114374]
[1767025685079,0.0256984,87539.0,87518.0,0.05744]
[1767025685279,0.0371332,87538.0,87518.0,0.05744]
[1767025685481,0.0256984,87537.0,87518.0,0.05744]
[1767025685682,0.00011263,87536.0,87518.0,0.05744]
[1767025685877,0.09724,87542.0,87519.0,0.09724]
[1767025686181,0.0114342,87543.0,87520.0,0.011437]
[1767025686483,0.0114355,87532.0,87519.0,0.09724]
[1767025686684,0.0114354,87534.0,87519.0,0.09724]
[1767025688098,0.0114336,87547.0,87519.0,0.09724]
[1767025688282,0.02569635,87546.0,87519.0,0.09724]
[1767025688480,0.02569635,87545.0,87519.0,0.09724]
[1767025688681,0.02569635,87544.0,87519.0,0.09724]
[1767025688879,0.02569635,87543.0,87519.0,0.09724]
[1767025689081,0.02569635,87542.0,87519.0,0.09724]
[1767025689276,0.09724,87549.0,87519.0,0.09724]
[1767025689490,0.02569193,87548.0,87519.0,0.09724]
[1767025689693,0.02569193,87547.0,87519.0,0.09724]
[1767025689893,0.0114351,87536.0,87519.0,0.09724]
[1767025690091,0.09724,87549.0,87519.0,0.09724]
[1767025690389,0.0114355,87533.0,87519.0,0.09724]
[1767025690590,0.0114335,87548.0,87519.0,0.09724]
[1767025690781,0.02568723,87547.0,87519.0,0.09724]
[1767025690987,0.0114366,87525.0,87513.0,0.05744]
[1767025691585,0.0114361,87528.0,87513.0,0.05744]
[1767025691792,0.0114364,87525.0,87513.0,0.05744]
[1767025692495,0.0114361,87528.0,87513.0,0.05744]
[1767025693288,0.0114347,87539.0,87513.0,0.05744]
[1767025693590,0.0114351,87536.0,87516.0,0.0114375]
[1767025693891,0.0114354,87534.0,87513.0,0.068878]
[1767025694093,0.0114349,87537.0,87517.0,0.0114374]
[1767025694787,0.0114352,87535.0,87514.0,0.0114379]
[1767025695184,0.0114355,87533.0,87513.0,0.05744]
[1767025695383,0.0972,87538.0,87513.0,0.05744]
[1767025695578,0.0114354,87534.0,87513.0,0.05744]
[1767025696293,0.0114349,87537.0,87515.0,0.0114377]
[1767025696893,0.0114353,87534.0,87515.0,0.0114377]
[1767025697188,0.0972,87538.0,87510.0,0.0114384]
[1767025697396,0.02568469,87537.0,87513.0,0.05744]
[1767025697585,0.02568469,87536.0,87513.0,0.05744]
[1767025697780,0.0972,87538.0,87513.0,0.05744]
[1767025697985,0.03711812,87537.0,87517.0,0.0114374]
[1767025698289,0.02568312,87536.0,87517.0,0.0114374]
[1767025698696,0.02568312,87536.0,87520.0,0.011437]
[1767025698993,0.0972,87538.0,87520.0,0.011437]
[1767025699193,0.02568398,87537.0,87520.0,0.011437]
[1767025699492,0.0972,87538.0,87520.0,0.011437]
[1767025699894,0.0972,87538.0,87522.0,0.0114368]
[1767025700085,0.0114345,87540.0,87522.0,0.0114368]
[1767025700286,0.02568348,87539.0,87522.0,0.0114368]
[1767025700489,0.03711828,87538.0,87521.0,0.05744]
[1767025700795,0.0114348,87538.0,87522.0,0.0114368]
[1767025701190,0.00786,87550.0,87521.0,0.05761136]
[1767025701489,0.00786,87550.0,87534.0,0.0114352]
[1767025701686,0.00786,87550.0,87535.0,0.15464]
[1767025702281,0.00786,87550.0,87538.0,0.0114346]
[1767025702486,0.15464,87565.0,87545.0,0.0114337]
[1767025702798,0.03710488,87564.0,87546.0,0.00017136]
[1767025702995,0.0114314,87564.0,87546.0,0.00017136]
[1767025703991,0.0114318,87561.0,87546.0,0.00017136]
[1767025704189,0.0114314,87564.0,87546.0,0.00017136]
[1767025705598,0.15464,87565.0,87546.0,0.00017136]
[1767025705802,0.0114304,87572.0,87546.0,0.00017136]
[1767025706004,0.15464,87574.0,87546.0,0.00017136]
[1767025706201,0.15464,87574.0,87555.0,0.0114325]
[1767025706401,0.15464,87574.0,87555.0,0.0688725]
[1767025706596,0.15464,87574.0,87555.0,0.05744]
[1767025706802,0.0114304,87572.0,87555.0,0.05744]
[1767025707190,0.0114304,87572.0,87556.0,0.0972]
[1767025708006,0.0972,87574.0,87556.0,0.1086324]
[1767025708208,0.0972,87574.0,87556.0,0.0972]
[1767025708897,0.0114303,87573.0,87556.0,0.0972]
[1767025709201,0.0972,87574.0,87556.0,0.0972]
[1767025709402,0.1086301,87574.0,87556.0,0.0972]
[1767025709796,0.0972,87574.0,87556.0,0.0972]
[1767025710406,0.0114302,87573.0,87556.0,0.0972]
[1767025711101,0.0972,87574.0,87556.0,0.0972]
[1767025711604,0.0114302,87573.0,87556.0,0.0972]
[1767025712397,0.0114305,87571.0,87556.0,0.0972]
[1767025713192,0.0972,87574.0,87556.0,0.0972]
[1767025714298,0.0972,87574.0,87557.0,0.0574]
[1767025714605,0.0114314,87564.0,87555.0,0.0574]
[1767025714798,0.0972,87574.0,87555.0,0.0574]
[1767025715102,0.0114306,87570.0,87552.0,0.0574]
[1767025715304,0.0114329,87553.0,87546.0,6e-08]
[1767025715497,0.0114329,87553.0,87543.0,0.0574]
[1767025715498,0.0114324,87557.0,87543.0,0.0574]
[1767025719609,0.00228447,87548.0,87543.0,0.0574]
[1767025720700,0.00017103,87559.0,87543.0,0.0574]
[1767025721307,0.0114323,87557.0,87543.0,0.0574]
[1767025721503,0.0114327,87554.0,87543.0,0.0574]
[1767025721808,0.0114325,87556.0,87543.0,0.0574]
[1767025722004,0.0114328,87554.0,87543.0,0.0574]
[1767025722210,0.0114328,87554.0,87541.0,0.00017136]
[1767025722602,0.00017103,87559.0,87541.0,0.00017136]
[1767025724113,0.0114326,87555.0,87541.0,0.00017136]
[1767025724310,0.0114329,87553.0,87541.0,0.00017136]
[1767025724506,0.0114325,87556.0,87541.0,0.00017136]
[1767025724812,0.0114333,87550.0,87541.0,0.00017136]
[1767025725020,0.00017103,87559.0,87541.0,0.00017136]
[1767025725204,0.02569751,87558.0,87541.0,0.00017136]
[1767025725404,0.00017103,87559.0,87541.0,0.00017136]
[1767025725602,0.02569752,87558.0,87541.0,0.00017136]
[1767025725804,0.0114322,87558.0,87541.0,0.00017136]
[1767025726114,0.01160313,87559.0,87541.0,0.00017136]
[1767025726313,0.02570401,87558.0,87541.0,0.00017136]
[1767025726512,0.01160313,87559.0,87541.0,0.00017136]
[1767025726714,0.02570403,87558.0,87541.0,0.00017136]
[1767025726909,0.0114326,87555.0,87541.0,0.00017136]
[1767025727105,0.0114329,87553.0,87541.0,0.00017136]
[1767025727408,0.0574,87557.0,87541.0,6e-08]
[1767025727709,0.0574,87557.0,87525.0,0.04784]
[1767025727710,0.0114343,87542.0,87525.0,0.04784]
[1767025728012,0.09716,87554.0,87525.0,0.04784]
[1767025728310,0.02571738,87553.0,87527.0,0.0114361]
[1767025728506,0.00017136,87549.0,87531.0,0.00017136]
[1767025728701,0.02571738,87548.0,87535.0,0.0114351]
[1767025728911,0.09716,87558.0,87540.0,0.0114344]
[1767025729107,0.09716,87558.0,87536.0,0.15456]
[1767025729108,0.02571842,87557.0,87542.0,0.0114341]
[1767025729308,0.02571842,87556.0,87536.0,0.15456]
[1767025729617,0.0574,87562.0,87547.0,0.0114335]
[1767025730413,0.00017103,87563.0,87536.0,0.15456]
[1767025730607,0.06128445,87573.0,87553.0,0.0114327]
[1767025730608,0.0972,87573.0,87553.0,0.0114327]
[1767025731008,0.0114306,87570.0,87552.0,0.0114329]
[1767025731409,0.0114306,87570.0,87551.0,0.0114329]
[1767025731616,0.0114306,87570.0,87552.0,0.00017136]
[1767025732017,0.1086302,87573.0,87552.0,0.00017136]
[1767025732529,0.0114306,87571.0,87552.0,0.00017136]
[1767025733919,0.0972,87573.0,87552.0,0.00017136]
[1767025734119,0.0972,87573.0,87556.0,0.0114323]
[1767025734517,0.00228369,87578.0,87560.0,0.0114318]
[1767025734710,0.09944369,87578.0,87560.0,0.0114318]
[1767025735017,0.0114301,87574.0,87558.0,0.09716]
[1767025735513,0.0114301,87574.0,87558.0,0.1546]
[1767025735721,0.0114297,87577.0,87558.0,0.1546]
[1767025736914,0.09944369,87578.0,87558.0,0.1546]
[1767025737112,0.04118671,87587.0,87560.0,0.20694011]
[1767025737417,0.04118671,87587.0,87560.0,0.21837201]
[1767025737611,0.04118671,87587.0,87560.0,0.232766]
[1767025737809,0.04118671,87587.0,87570.0,0.0114305]
[1767025738012,0.04118671,87587.0,87572.0,0.0114302]
[1767025738222,0.04118671,87587.0,87574.0,0.01143]
[1767025738521,0.04118671,87587.0,87570.0,0.09733136]
[1767025738713,0.05261511,87587.0,87570.0,0.09733136]
[1767025740314,0.04118671,87587.0,87570.0,0.09733136]
[1767025740513,0.09716,87592.0,87570.0,0.09733136]
[1767025740809,0.2543861,87605.0,87570.0,0.09733136]
[1767025740810,0.15456,87599.0,87570.0,0.09733136]
[1767025741015,0.0114277,87593.0,87573.0,0.0114302]
[1767025741323,0.0574,87601.0,87574.0,0.01143]
[1767025741515,0.0114281,87589.0,87570.0,0.10876186]
[1767025741715,0.0114277,87593.0,87570.0,0.10876186]
[1767025741914,0.011428,87590.0,87570.0,0.10876186]
[1767025742119,0.0114276,87593.0,87573.0,0.0114301]
[1767025742324,0.011428,87591.0,87573.0,0.0114301]
[1767025742924,0.0574,87601.0,87570.0,0.09733136]
[1767025743108,0.0574,87601.0,87571.0,0.0114304]
[1767025743607,0.0574,87601.0,87573.0,0.0114301]
[1767025743812,0.0114279,87591.0,87573.0,0.0114301]
[1767025744311,0.011428,87590.0,87572.0,0.0114303]
[1767025744511,0.0114276,87593.0,87580.0,0.20678701]
[1767025744711,0.0114276,87593.0,87581.0,0.0574]
[1767025744910,0.20678701,87600.0,87581.0,0.0574]
[1767025745316,0.0114276,87593.0,87581.0,0.0574]
[1767025746518,0.0574,87601.0,87581.0,0.0574]
[1767025746519,0.0114268,87599.0,87581.0,0.0574]
[1767025746824,0.0574,87601.0,87581.0,0.0574]
[1767025747323,0.0114267,87600.0,87581.0,0.0574]
[1767025747622,0.0114277,87593.0,87581.0,0.0574]
[1767025747916,0.0114279,87591.0,87581.0,0.0574]
[1767025748122,0.0114269,87598.0,87570.0,0.00017136]
[1767025748307,0.20678634,87590.0,87570.0,6e-08]
[1767025748510,0.0574,87601.0,87550.0,0.09716]
[1767025748511,0.21821564,87580.0,87550.0,0.09716]
[1767025748716,0.011431,87567.0,87551.0,0.0574]
[1767025748924,0.0114306,87571.0,87551.0,0.0574]
[1767025749122,0.0114304,87572.0,87551.0,0.0574]
[1767025749320,0.0114304,87572.0,87551.0,0.068833]
[1767025749520,0.00017101,87570.0,87553.0,0.00017126]
[1767025750023,0.15456,87578.0,87553.0,0.00017126]
[1767025750414,0.0114297,87577.0,87554.0,0.0114326]
[1767025750723,0.0114279,87591.0,87557.0,0.0114323]
[1767025750922,0.0114296,87578.0,87557.0,0.0114323]
[1767025751227,0.0114307,87570.0,87553.0,0.00017126]
[1767025753624,0.0114302,87573.0,87553.0,0.00017126]
[1767025753926,0.0114297,87577.0,87553.0,0.00017126]
[1767025754324,0.01143,87575.0,87553.0,0.01160396]
[1767025754525,0.0114302,87573.0,87553.0,0.00017126]
[1767025755015,0.0114305,87571.0,87553.0,0.00017126]
[1767025755416,0.0114301,87574.0,87554.0,0.0114326]
[1767025756625,0.0114301,87574.0,87556.0,0.0114323]
[1767025756826,0.1085896,87578.0,87557.0,0.0114322]
[1767025757129,0.09716,87578.0,87553.0,0.00017126]
[1767025757313,0.0114289,87583.0,87553.0,0.00017126]
[1767025757314,0.0574,87580.0,87553.0,0.00017126]
[1767025757511,0.0114303,87573.0,87555.0,0.0114325]
[1767025757722,0.0114303,87573.0,87553.0,0.00017126]
[1767025757926,0.0114305,87571.0,87553.0,0.00017126]
[1767025758422,0.0114315,87564.0,87553.0,0.00017126]
[1767025758615,0.36134634,87580.0,87553.0,0.00017126]
[1767025758616,0.011431,87567.0,87553.0,0.00017126]
[1767025758817,0.0114306,87570.0,87553.0,0.00017126]
[1767025759127,0.0114301,87574.0,87554.0,0.0114326]
[1767025760221,0.0114301,87574.0,87556.0,0.0114323]
[1767025760423,0.0114297,87577.0,87558.0,0.0114321]
[1767025760615,0.15456,87580.0,87553.0,0.00017126]
[1767025760817,0.0114306,87570.0,87553.0,0.01160396]
[1767025762538,0.0114299,87576.0,87557.0,0.0114322]
[1767025762729,0.0114301,87574.0,87557.0,0.0114322]
[1767025765629,0.0114298,87577.0,87559.0,0.0114319]
[1767025765827,0.0114301,87574.0,87559.0,0.0114319]
[1767025766228,0.15456,87580.0,87553.0,0.00017126]
[1767025766425,0.0114275,87594.0,87553.0,0.00017126]
[1767025766426,0.0114298,87576.0,87561.0,0.0114316]
[1767025766732,0.09716,87580.0,87553.0,0.00017126]
[1767025767229,0.0114298,87576.0,87553.0,0.00017126]
[1767025767632,0.1085893,87580.0,87555.0,0.0114325]
[1767025767832,0.02544224,87579.0,87555.0,0.0114325]
[1767025768023,0.0114304,87572.0,87557.0,0.0114322]
[1767025769534,0.0114307,87570.0,87553.0,0.00017126]
[1767025771135,0.0114303,87573.0,87559.0,0.011432]
[1767025771831,0.0114299,87576.0,87559.0,0.011432]
[1767025772227,0.0114301,87574.0,87559.0,0.011432]
[1767025772534,0.30405626,87580.0,87554.0,0.0114326]
[1767025772733,0.0114307,87569.0,87554.0,0.0114326]
[1767025773330,0.0114312,87566.0,87553.0,0.00017126]
[1767025773534,0.0114308,87569.0,87553.0,0.00017126]
[1767025774038,0.0114308,87569.0,87553.0,0.01160396]
[1767025774232,0.0114304,87572.0,87555.0,0.0114325]
[1767025774432,0.21832696,87570.0,87555.0,0.0114325]
[1767025774733,0.011431,87567.0,87553.0,0.00017126]
[1767025774933,0.30405626,87580.0,87553.0,0.00017126]
[1767025775134,0.20689626,87570.0,87553.0,0.01160396]
[1767025775328,0.0114305,87571.0,87555.0,0.0114325]
[1767025776434,0.0114308,87569.0,87553.0,0.00017126]
[1767025777135,0.0114308,87569.0,87554.0,0.0114326]
[1767025777336,0.0114304,87572.0,87554.0,0.0114326]
[1767025778131,0.0114309,87568.0,87553.0,0.00017126]
[1767025778334,0.0114305,87571.0,87553.0,0.01160396]
[1767025778535,0.0114301,87574.0,87555.0,0.0114325]
[1767025778735,0.02561918,87573.0,87555.0,0.0114325]
[1767025778932,0.02561918,87572.0,87555.0,0.0114325]
[1767025779132,0.0114301,87574.0,87555.0,0.0114325]
[1767025779332,0.0114284,87587.0,87564.0,0.20689626]
[1767025779635,0.06128445,87593.0,87567.0,0.00017126]
[1767025779636,0.0114288,87584.0,87567.0,0.00017126]
[1767025780336,0.20689626,87590.0,87567.0,0.00017126]
[1767025780534,0.09716,87596.0,87570.0,0.20689626]
[1767025780738,0.09716,87597.0,87570.0,0.20689626]
[1767025780927,0.15452,87598.0,87580.0,0.20689626]
[1767025781132,0.15452,87598.0,87581.0,0.0114291]
[1767025781431,0.0114264,87603.0,87580.0,0.20689626]
[1767025781636,0.0114264,87603.0,87576.0,0.15452]
[1767025781637,0.0114258,87607.0,87590.0,0.20689626]
[1767025781838,0.0114258,87607.0,87589.0,0.011428]
[1767025782333,0.0114261,87605.0,87586.0,0.0114284]
[1767025782540,0.0114268,87600.0,87585.0,0.05736]
[1767025782840,0.0114263,87603.0,87585.0,0.05736]
[1767025784437,0.0114263,87603.0,87586.0,0.09716]
[1767025784638,0.00228291,87608.0,87586.0,0.09716]
[1767025784837,0.0114265,87602.0,87586.0,0.09716]
[1767025785235,0.011426,87606.0,87586.0,0.09716]
[1767025785438,0.00228291,87608.0,87586.0,0.09711]
[1767025786337,0.01370861,87608.0,87590.0,0.20689626]
[1767025786541,0.01370861,87608.0,87591.0,0.0114278]
[1767025786542,0.00228291,87608.0,87591.0,0.0114278]
[1767025786947,0.0114262,87604.0,87586.0,0.09711]
[1767025787147,0.00228291,87608.0,87586.0,0.09711]
[1767025787348,0.00228291,87608.0,87588.0,0.0114282]
[1767025788242,0.00228291,87608.0,87586.0,0.09711]
[1767025788648,0.0114259,87606.0,87587.0,0.0114283]
[1767025789347,0.0114259,87606.0,87586.0,0.09711]
[1767025789348,0.0114262,87604.0,87586.0,0.09711]
[1767025789550,0.0114258,87607.0,87586.0,0.1085384]
[1767025789945,0.0114261,87605.0,87586.0,0.1085384]
[1767025790652,0.00228291,87608.0,87586.0,0.09711]
[1767025790842,0.0114263,87603.0,87586.0,0.09711]
[1767025791553,0.0114262,87604.0,87586.0,0.09711]
[1767025791854,0.0114265,87602.0,87586.0,0.09711]
[1767025792439,0.00228291,87608.0,87586.0,0.09711]
[1767025792647,0.0114264,87602.0,87586.0,0.09711]
[1767025793149,0.0114264,87602.0,87587.0,0.05736]
[1767025793954,0.0114268,87599.0,87587.0,0.05736]
[1767025794152,0.0114271,87597.0,87587.0,0.05736]
[1767025794346,0.0114274,87595.0,87583.0,0.00017126]
[1767025794547,0.05736,87601.0,87583.0,0.01290986]
[1767025794548,0.09712,87600.0,87583.0,0.01290986]
[1767025794753,0.09712,87600.0,87580.0,0.05736]
[1767025795444,0.0114272,87597.0,87580.0,0.05736]
[1767025795744,0.09712,87600.0,87580.0,0.05736]
[1767025795745,0.00017126,87599.0,87581.0,0.00017126]
[1767025796143,0.011428,87590.0,87572.0,0.05736]
[1767025796553,0.05736,87592.0,87573.0,0.0114301]
[1767025796854,0.0114278,87591.0,87572.0,0.05736]
[1767025797249,0.05736,87592.0,87572.0,0.0687903]
[1767025797453,0.05736,87592.0,87573.0,0.00017126]
[1767025798248,0.0114279,87591.0,87573.0,0.00017126]
[1767025798445,0.05736,87592.0,87573.0,0.00017126]
[1767025799252,0.05736,87592.0,87574.0,0.01143]
[1767025799446,0.0687877,87592.0,87573.0,0.00017126]
[1767025800061,0.0114277,87592.0,87573.0,0.00017126]
[1767025800350,0.011429,87583.0,87573.0,0.00017126]
[1767025800656,0.0114289,87583.0,87573.0,0.00017126]
[1767025800854,0.0114298,87577.0,87561.0,0.09712]
[1767025801051,0.00017126,87599.0,87561.0,0.09712]
[1767025801052,0.15444,87584.0,87566.0,0.011431]
[1767025801254,0.0114289,87583.0,87563.0,0.0114314]
[1767025801554,0.0114289,87583.0,87561.0,0.05732]
[1767025801952,0.00017126,87581.0,87563.0,0.01160266]
[1767025802156,0.15444,87587.0,87563.0,0.00017126]
[1767025802355,0.09712,87596.0,87563.0,0.00017126]
[1767025802549,0.15444,87596.0,87578.0,0.0114294]
[1767025803051,0.05736,87600.0,87572.0,0.0687903]
[1767025803358,0.00017126,87596.0,87581.0,0.011429]
[1767025803549,0.00017126,87596.0,87582.0,0.05736]
[1767025803746,0.00228291,87608.0,87591.0,0.0114277]
[1767025803950,0.00228291,87608.0,87587.0,0.0114283]
[1767025804655,0.00228291,87608.0,87591.0,0.0114278]
[1767025805152,0.00245417,87608.0,87591.0,0.0114277]
[1767025805559,0.00245417,87608.0,87594.0,0.0114274]
[1767025806957,0.06128445,87628.0,87590.0,0.05736]
[1767025806958,0.1085438,87622.0,87591.0,0.09712]
[1767025807162,0.0114245,87617.0,87594.0,0.0114273]
[1767025807456,0.0114245,87617.0,87597.0,0.0114269]
[1767025807655,0.011424,87621.0,87600.0,0.0114266]
[1767025807862,0.0114243,87619.0,87599.0,0.0687868]
[1767025808254,0.0114243,87619.0,87600.0,0.00017126]
[1767025809561,0.15448,87623.0,87604.0,0.0114261]
[1767025809759,0.02534649,87622.0,87604.0,0.0114261]
[1767025810056,0.02534649,87621.0,87604.0,0.0114261]
[1767025810259,0.0114238,87623.0,87605.0,0.09712]
[1767025810459,0.02534507,87622.0,87605.0,0.09712]
[1767025810761,0.02534505,87621.0,87605.0,0.09712]
[1767025811060,0.02534506,87620.0,87605.0,0.09712]
[1767025811261,0.0114238,87623.0,87605.0,0.09712]
[1767025811462,0.02534185,87622.0,87605.0,0.09712]
[1767025811662,0.02534185,87621.0,87605.0,0.09712]
[1767025811858,0.0114238,87623.0,87605.0,0.09712]
[1767025812060,0.02534197,87622.0,87605.0,0.09712]
[1767025812361,0.02534197,87621.0,87605.0,0.09712]
[1767025812550,0.15448,87628.0,87605.0,0.09712]
[1767025812746,0.0253381,87627.0,87605.0,0.09712]
[1767025812953,0.0367615,87626.0,87600.0,0.00017126]
[1767025813159,0.0114263,87603.0,87600.0,6e-08]
[1767025813353,0.0114245,87617.0,87576.0,0.01371223]
[1767025813354,0.0114268,87599.0,87585.0,0.09712]
[1767025813557,0.0114268,87599.0,87577.0,0.0114296]
[1767025813747,0.15444,87614.0,87578.0,0.15448]
[1767025813953,0.0114277,87592.0,87559.0,0.011432]
[1767025814151,0.0114277,87592.0,87569.0,0.1141344]
[1767025814359,0.00017126,87589.0,87572.0,0.01160146]
[1767025814564,0.00017126,87589.0,87574.0,0.01143]
[1767025816165,0.15448,87604.0,87573.0,0.09712]
[1767025816166,0.0114266,87601.0,87573.0,0.09712]
[1767025816360,0.02532652,87600.0,87578.0,0.0114295]
[1767025816555,0.0114266,87601.0,87578.0,0.0114295]
[1767025816756,0.0114272,87596.0,87575.0,0.0114299]
[1767025816957,0.0114272,87596.0,87578.0,0.00228369]
[1767025817157,0.0114272,87596.0,87579.0,0.05736]
[1767025819561,0.0114264,87602.0,87579.0,0.0687893]
[1767025819768,0.0114267,87600.0,87579.0,0.0687893]
[1767025820062,0.0114269,87598.0,87579.0,0.0687893]
[1767025821968,0.0114265,87601.0,87579.0,0.0687893]
[1767025823265,0.1659062,87604.0,87579.0,0.05736]
[1767025823572,0.02532191,87603.0,87579.0,0.05736]
[1767025823770,0.02532191,87602.0,87579.0,0.05736]
[1767025823971,0.02532191,87601.0,87579.0,0.05736]
[1767025824173,0.0114277,87593.0,87579.0,0.05736]
[1767025824373,0.0114277,87593.0,87578.0,0.00228369]
[1767025824559,0.0114272,87596.0,87578.0,0.00228369]
[1767025824763,0.06128445,87614.0,87581.0,0.0114291]
[1767025824966,0.0114266,87601.0,87578.0,0.01371319]
[1767025825165,0.0114268,87599.0,87578.0,0.01371319]
[1767025826372,0.15444,87600.0,87578.0,0.00228369]
[1767025826971,0.0114221,87635.0,87599.0,0.0114267]
[1767025827268,0.0114221,87635.0,87608.0,0.00017126]
[1767025827269,0.17977688,87634.0,87608.0,0.00017126]
[1767025827475,0.011424,87621.0,87608.0,0.00017126]
[1767025827876,0.0114243,87619.0,87608.0,0.00017126]
[1767025828077,0.15448,87622.0,87608.0,0.00017126]
[1767025828268,0.02533826,87621.0,87598.0,0.05732]
[1767025828468,0.0114248,87615.0,87598.0,0.05732]
[1767025829277,0.01159606,87615.0,87598.0,0.05749126]
[1767025829468,0.00017126,87615.0,87598.0,0.05749126]
[1767025829669,0.00017126,87615.0,87598.0,0.06891816]
[1767025829977,0.00017126,87615.0,87598.0,0.05749126]
[1767025830179,0.00017126,87615.0,87605.0,0.0114259]
[1767025830377,0.15448,87622.0,87605.0,0.0114259]
[1767025830578,0.15448,87622.0,87607.0,0.0114257]
[1767025830778,0.0114231,87628.0,87609.0,0.0114254]
[1767025830779,0.15448,87624.0,87609.0,0.0114254]
[1767025831079,0.02533536,87623.0,87598.0,0.05749126]
[1767025831268,0.15448,87624.0,87598.0,0.05749126]
[1767025831269,0.03675926,87622.0,87602.0,0.0114263]
[1767025831465,0.0114239,87622.0,87602.0,0.0114263]
[1767025832186,0.02533586,87621.0,87602.0,0.0114263]
[1767025832374,0.0114239,87622.0,87602.0,0.0114263]
[1767025832575,0.02533565,87621.0,87598.0,0.05749126]
[1767025832776,0.15448,87624.0,87598.0,0.05749126]
[1767025833080,0.02533443,87623.0,87598.0,0.05749126]
[1767025833278,0.02533443,87622.0,87602.0,0.0114263]
[1767025833577,0.1659036,87624.0,87604.0,0.0114261]
[1767025833777,0.02533356,87623.0,87604.0,0.0114261]
[1767025834079,0.02533356,87622.0,87604.0,0.0114261]
[1767025834378,0.0114238,87622.0,87601.0,0.0114265]
[1767025834679,0.0114238,87622.0,87603.0,0.0114262]
[1767025835779,0.15448,87624.0,87603.0,0.0114262]
[1767025835975,0.0114238,87622.0,87603.0,0.0114262]
[1767025836780,0.0114238,87622.0,87605.0,0.011426]
[1767025837078,0.02532618,87621.0,87607.0,0.0114257]
[1767025837281,0.02532618,87620.0,87603.0,0.0114261]
[1767025837590,0.0114237,87623.0,87603.0,0.0114261]
[1767025837770,0.02533921,87622.0,87598.0,0.05541736]
[1767025837967,0.0114237,87623.0,87598.0,0.05541736]
[1767025837968,0.02533921,87621.0,87598.0,0.05541736]
[1767025838173,0.02533921,87620.0,87603.0,0.0114261]
[1767025838374,0.0114237,87623.0,87603.0,0.0114261]
[1767025838571,0.15448,87624.0,87603.0,0.0114261]
[1767025838572,0.02533793,87622.0,87603.0,0.0114261]
[1767025838780,0.0114241,87620.0,87603.0,0.0114261]
[1767025839876,0.0114237,87623.0,87603.0,0.0114261]
[1767025840072,0.02534283,87622.0,87603.0,0.0114261]
[1767025840273,0.02534283,87621.0,87605.0,0.011426]
[1767025840581,0.02534283,87620.0,87605.0,0.011426]
[1767025840882,0.0114241,87620.0,87600.0,0.0114265]
[1767025841082,0.15448,87624.0,87599.0,0.0114267]
[1767025841280,0.0114245,87617.0,87599.0,0.0114267]
[1767025841978,0.0114245,87617.0,87601.0,0.0114265]
[1767025842182,0.0114241,87620.0,87601.0,0.0114265]
[1767025842382,0.15448,87624.0,87598.0,0.05541736]
[1767025842573,0.0114256,87608.0,87598.0,0.00017126]
[1767025842884,0.05732,87614.0,87600.0,0.0114266]
[1767025843085,0.05732,87614.0,87593.0,0.05732]
[1767025843273,0.05732,87614.0,87599.0,0.0114267]
[1767025843676,0.00017126,87620.0,87607.0,0.0114257]
[1767025844277,0.00017126,87620.0,87604.0,0.0114261]